Workbook

Sheet FTF青少年无人机赛项
A1: 2025世界机器人大赛青少年机器人设计大赛-北京市选拔赛-FTF青少年无人机赛项获奖名单
A2: 报名编号 | B2: 激活码 | C2: 赛道 | D2: 赛项 | E2: 所属类别 | F2: 组别 | G2: 队伍名称 | H2: 参赛单位 | I2: 教练信息 | J2: 选手信息 | K2: 比赛分数 | L2: 比赛用时 | M2: 成绩排名 | N2: 奖项
A3: 140691 | B3: 2B8haaAW-319-010-Ue-002-qgL-056-1-Gzz-01-2fI | C3: FTF青少年无人机赛项 | D3: 编程任务 | E3: 挑战类 | F3: 小学组 | G3: 飞越宇宙 | H3: 北京市清华大学附属小学商务中心区实验小学 | I3: 孙世鹏 | J3: 张司钰 | K3: 80 | L3: 2.51.93 | M3: 1 | N3: 一等奖(冠军)
A4: 140716 | B4: 2B8haaAR-319-010-bF-002-HbO-056-1-xMg-01-lth | C4: FTF青少年无人机赛项 | D4: 编程任务 | E4: 挑战类 | F4: 小学组 | G4: 乘风破浪 | H4: 北京市东城区史家实验学校 | I4: 孙世鹏 | J4: 王治新 | K4: 75 | L4: 2.36.36 | M4: 2 | N4: 一等奖(亚军)
A5: 140703 | B5: 2B8haaAl-319-010-F4-002-IBC-056-1-CxB-01-8T2 | C5: FTF青少年无人机赛项 | D5: 编程任务 | E5: 挑战类 | F5: 小学组 | G5: 飞翔战神 | H5: 北京市朝阳区白家庄小学本部南校区 | I5: 孙世鹏 | J5: 干禄田 | K5: 70 | L5: 2.44.63 | M5: 3 | N5: 一等奖(季军)
A6: 140537 | B6: 2B8haaAC-319-010-lq-002-Pvx-056-1-pJq-01-AmF | C6: FTF青少年无人机赛项 | D6: 编程任务 | E6: 挑战类 | F6: 小学组 | G6: 金源二队 | H6: 北京市海淀区实验小学苏州街校区 | I6: 孙世鹏 | J6: 袁琳博 | K6: 60 | L6: 2.53.06 | M6: 4 | N6: 二等奖
A7: 140380 | B7: 2B8haawe-319-010-SY-002-iXi-056-1-DvT-01-Fhr | C7: FTF青少年无人机赛项 | D7: 编程任务 | E7: 挑战类 | F7: 小学组 | G7: 悠电逐风队 | H7: 北京市丰台区第五小学 上海宋庆龄学校 | I7: 孙洁 | J7: 田兆坤|陈君泽 | K7: 45 | L7: 1.57.36 | M7: 5 | N7: 二等奖
A8: 140761 | B8: 2B8haaAb-319-010-T7-002-QAf-056-1-KdG-01-Ip7 | C8: FTF青少年无人机赛项 | D8: 编程任务 | E8: 挑战类 | F8: 小学组 | G8: 星河璀璨队 | H8: 北京市朝阳外国语学校来广营校区小学部 北京景山学校（北校区） | I8: 王恒源 | J8: 王张安佑|李浚承 | K8: 45 | L8: 1.01.87 | M8: 6 | N8: 二等奖
A9: 140495 | B9: 2B8haaAS-319-010-EK-002-vgF-056-1-q1D-01-nZC | C9: FTF青少年无人机赛项 | D9: 编程任务 | E9: 挑战类 | F9: 小学组 | G9: 金源一队 | H9: 北京市海淀区实验小学紫竹院路校区 | I9: 孙世鹏 | J9: 杨柏康 | K9: 40 | L9: 2.07.64 | M9: 7 | N9: 二等奖
A10: 140552 | B10: 2B8haaAp-319-010-DP-002-myk-056-1-Ixh-01-upi | C10: FTF青少年无人机赛项 | D10: 编程任务 | E10: 挑战类 | F10: 小学组 | G10: 金源三队 | H10: 京市第一零九中学小学实验部 | I10: 孙世鹏 | J10: 胡芮霖 | K10: 40 | L10: 3.00.00 | M10: 8 | N10: 二等奖
A11: 140710 | B11: 2B8haaAH-319-010-14-002-6AK-056-1-2Jw-01-wyr | C11: FTF青少年无人机赛项 | D11: 编程任务 | E11: 挑战类 | F11: 小学组 | G11: 展翅翱翔 | H11: 北京市朝阳区白家庄小学 | I11: 孙世鹏 | J11: Elven Zhu | K11: 35 | L11: 2.48.08 | M11: 9 | N11: 二等奖
A12: 140100 | B12: 2B8haawF-319-010-Sh-002-Vto-056-1-uU0-01-xyJ | C12: FTF青少年无人机赛项 | D12: 编程任务 | E12: 挑战类 | F12: 小学组 | G12: 挑战者队 | H12: 北京市陈经纶中学嘉铭分校 | I12: 王恒源 | J12: 姚成熙 | K12: 15 | L12: 1.10.50 | M12: 10 | N12: 三等奖
A13: 140156 | B13: 2B8haaAX-319-010-29-002-PCx-056-1-YKS-01-hnD | C13: FTF青少年无人机赛项 | D13: 编程任务 | E13: 挑战类 | F13: 小学组 | G13: 阿奇队 | H13: 北京市东城区安外三条小学 | I13: 于俊伟 | J13: 赵廷睻 | K13: 15 | L13: 1.32.36 | M13: 11 | N13: 三等奖
A14: 140207 | B14: 2B8haaAi-319-010-fE-002-kT8-056-1-pcm-01-6lx | C14: FTF青少年无人机赛项 | D14: 编程任务 | E14: 挑战类 | F14: 小学组 | G14: 毛毛队 | H14: 北京景山学校朝阳学校 北京市西城区黄城根小学 | I14: 于俊伟 | J14: 李梓菡|陈音同 | K14: 15 | L14: 1.52.75 | M14: 12 | N14: 三等奖
A15: 140215 | B15: 2B8haaA7-319-010-Yb-002-gn0-056-1-1VH-01-W4S | C15: FTF青少年无人机赛项 | D15: 编程任务 | E15: 挑战类 | F15: 小学组 | G15: 超前旋风队 | H15: 北京第二实验小学 北京市西城区京华实验学校 | I15: 王恒源 | J15: 徐和新|徐家骐 | K15: 15 | L15: 00.53.54 | M15: 13 | N15: 三等奖
A16: 140726 | B16: 2B8haaAA-319-010-iZ-002-jup-056-1-pgf-01-4Sy | C16: FTF青少年无人机赛项 | D16: 编程任务 | E16: 挑战类 | F16: 小学组 | G16: 勇往直前队 | H16: 北京市第二实验小学德胜校区 北京市东城区安外三条小学 | I16: 王恒源 | J16: 张沐熙|谢景轩 | K16: 15 | L16: 1.19.03 | M16: 14 | N16: 三等奖
A17: 140245 | B17: 2B8haaAM-319-010-pm-002-opy-056-1-guW-01-yS7 | C17: FTF青少年无人机赛项 | D17: 编程任务 | E17: 挑战类 | F17: 小学组 | G17: 路马队 | H17: 花家地实验小学 北京市中科启元学校 | I17: 于俊伟 | J17: 杨复暄|李昊泽 | K17: 10 | L17: 00.14.54 | M17: 15 | N17: 三等奖
A18: 140737 | B18: 2B8haaAt-319-010-dQ-002-tz7-056-1-6tw-01-jxb | C18: FTF青少年无人机赛项 | D18: 编程任务 | E18: 挑战类 | F18: 小学组 | G18: 灰灰队 | H18: 花家地实验小学朝来校区 国音附属北京实验学校（北辰绿色家园校区） | I18: 于俊伟 | J18: 高晟宁|孙嘉峻 | K18: 10 | L18: 2.30.00 | M18: 16 | N18: 三等奖
A19: 140748 | B19: 2B8haaAq-319-010-pm-002-EbR-056-1-Vzk-01-zXo | C19: FTF青少年无人机赛项 | D19: 编程任务 | E19: 挑战类 | F19: 小学组 | G19: 小砾队 | H19: 陈经纶中学嘉铭分校秀园小学 景山学校朝阳学校 | I19: 于俊伟 | J19: 孟令晅|刘仲恩 | K19: 10 | L19: 1.17.26 | M19: 17 | N19: 三等奖
A20: 140739 | B20: 2B8haaAU-319-010-y5-002-EnO-056-1-wwD-01-zek | C20: FTF青少年无人机赛项 | D20: 编程任务 | E20: 挑战类 | F20: 小学组 | G20: 雷霆出击队 | H20: 北京市第八十中学嘉源分校 北京市朝阳外国语学校 | I20: 王恒源 | J20: 严德政|王梓骁 | K20: 5 | L20: 00.44.83 | M20: 18 | N20: 三等奖
A22: 报名编号 | B22: 激活码 | C22: 赛道 | D22: 赛项 | E22: 所属类别 | F22: 组别 | G22: 队伍名称 | H22: 参赛单位 | I22: 教练信息 | J22: 选手信息 | K22: 荣誉值 | L22: 时间 | M22: 排名 | N22: 奖项 | O22: 积分
A23: 141688 | B23: 2B8haaPT-319-010-BH-001-sWw-053-1-x7n-06-K4N | C23: FTF青少年无人机赛项 | D23: 极速任务 | E23: 普及类 | F23: 小学高龄组 | G23: 一飞冲天 | H23: 海淀实验北洼路校区 | I23: 郑明玉 | J23: 王泓莘|王泓晴 | K23: 18 | L23: =28+30 -> 58 | M23: 1 | N23: 一等奖(冠军) | O23: 69
A24: 143536 | B24: 2B8haaPH-319-010-qm-001-nrK-053-1-cQH-06-DzY | C24: FTF青少年无人机赛项 | D24: 极速任务 | E24: 普及类 | F24: 小学高龄组 | G24: 飞行堡垒 | H24: 中国人民大学附属小学 首都师范大学附属玉泉学校 | I24: 郑明玉 | J24: 李晨熙|陆博瑄 | K24: 16 | L24: =29.6+34.6 -> 64.2 | M24: 2 | N24: 一等奖(亚军) | O24: 69
A25: 145666 | B25: 2B8haaP3-319-010-PW-001-R8P-053-1-wIn-06-PfE | C25: FTF青少年无人机赛项 | D25: 极速任务 | E25: 普及类 | F25: 小学高龄组 | G25: 科创队 | H25: 北京市西城区黄城根小学 北京市自忠小学 | I25: 王坤华 | J25: 严雨禾|石宗玉 | K25: 15 | L25: =180+32.64 -> 212.64 | M25: 3 | N25: 一等奖(季军) | O25: 66
A26: 140415 | B26: 2B8haahu-319-010-Rw-001-zLU-053-1-y5l-06-9rG | C26: FTF青少年无人机赛项 | D26: 极速任务 | E26: 普及类 | F26: 小学高龄组 | G26: FTF-枣园1队 | H26: 唐门（北京）教育科技 | I26: 武晨曦 | J26: 李铭祎|李睿辰 | K26: 15 | L26: =45+47 -> 92 | M26: 4 | N26: 一等奖 | O26: 54
A27: 141635 | B27: 2B8haaPW-319-010-zy-001-Yyj-053-1-bGx-06-ign | C27: FTF青少年无人机赛项 | D27: 极速任务 | E27: 普及类 | F27: 小学高龄组 | G27: 追风小分队 | H27: 中国人民大学附属小学 北京海淀实验小学苏州街校区 | I27: 郑明玉 | J27: 杜宇轩|陈屹晨 | K27: 12 | L27: =36+54 -> 90 | M27: 5 | N27: 一等奖 | O27: 42
A28: 143552 | B28: 2B8haaPR-319-010-0r-001-pE4-053-1-dwc-06-SVN | C28: FTF青少年无人机赛项 | D28: 极速任务 | E28: 普及类 | F28: 小学高龄组 | G28: 风之歌 | H28: 北京市门头沟区大峪第二小学 中国人民大学附属实验小学 | I28: 郑明玉 | J28: 于罂博|宗艺潼 | K28: 12 | L28: =34.42+52.04 -> 86.46 | M28: 6 | N28: 二等奖 | O28: =18+12 -> 30
A29: 152425 | B29: 2B8haaPe-319-010-pX-001-6TM-053-1-Y2M-06-Oij | C29: FTF青少年无人机赛项 | D29: 极速任务 | E29: 普及类 | F29: 小学高龄组 | G29: 必争第一队 | H29: 北京市海淀区实验小学 北京小学红山分校 | I29: 胡金利 | J29: 贾松泽|伊圣源 | K29: 9 | L29: =60+56 -> 116 | M29: 7 | N29: 二等奖 | O29: 33
A30: 140424 | B30: 2B8haahd-319-010-fF-001-dGl-053-1-wFL-06-Dv8 | C30: FTF青少年无人机赛项 | D30: 极速任务 | E30: 普及类 | F30: 小学高龄组 | G30: FTF-枣园2队 | H30: 唐门（北京）教育科技 | I30: 武晨曦 | J30: 李浩林|刘桓伊 | K30: 9 | L30: =53.9+180 -> 233.9 | M30: 8 | N30: 二等奖 | O30: 33
A31: 144730 | B31: 2B8haaPu-319-010-d5-001-ynW-053-1-OxP-06-GOF | C31: FTF青少年无人机赛项 | D31: 极速任务 | E31: 普及类 | F31: 小学高龄组 | G31: 白帝之翼 | H31: 北京育才学校 北京小学天宁寺分校 | I31: 刘成林 | J31: 高瑀晗|黄贺 | K31: 6 | L31: =27.95+31.16 -> 59.11 | M31: 9 | N31: 二等奖 | O31: 33
A32: 152463 | B32: 2B8haaPk-319-010-fp-001-0fZ-053-1-akN-06-Ena | C32: FTF青少年无人机赛项 | D32: 极速任务 | E32: 普及类 | F32: 小学高龄组 | G32: 战无不胜队 | H32: 北京市海淀区翠微小学 | I32: 胡金利 | J32: 董奕辰|刘乐山 | K32: 6 | L32: =37.37+55.02 -> 92.39 | M32: 10 | N32: 二等奖 | O32: 24
A33: 152479 | B33: 2B8haahv-319-010-Yf-001-HR9-053-1-owU-06-cHb | C33: FTF青少年无人机赛项 | D33: 极速任务 | E33: 普及类 | F33: 小学高龄组 | G33: 稳赢不输队 | H33: 北京市丰台区建华学校 北京市西城区育民小学 | I33: 胡金利 | J33: 刘泓彦|李梓隽 | K33: 6 | L33: =68.01+70.21 -> 138.22 | M33: 11 | N33: 二等奖 | O33: 21
A34: 156656 | B34: 2B8haahV-319-010-uq-001-H5X-053-1-VTv-06-0pL | C34: FTF青少年无人机赛项 | D34: 极速任务 | E34: 普及类 | F34: 小学高龄组 | G34: 天狼战队 | H34: 北京市海淀区第二实验小学、北京市海淀区上地实验小学 | I34: 史兴华 | J34: 田珈铭|石荞睿 | K34: 4 | L34: =39+55 -> 94 | M34: 12 | N34: 二等奖 | O34: 27
A35: 148471 | B35: 2B8haahp-319-010-eL-001-udS-053-1-jLv-06-PhG | C35: FTF青少年无人机赛项 | D35: 极速任务 | E35: 普及类 | F35: 小学高龄组 | G35: 飞龙一队 | H35: 博思同创 | I35: 马秀秀 | J35: 李一鸣|张哲瀚 | K35: 3 | L35: =60+93 -> 153 | M35: 13 | N35: 二等奖 | O35: 27
A36: 156470 | B36: 2B8haahG-319-010-Ay-001-h8e-053-1-k23-06-Sxr | C36: FTF青少年无人机赛项 | D36: 极速任务 | E36: 普及类 | F36: 小学高龄组 | G36: 空中猎豹 | H36: 北京市海淀区第二实验小学、清华大学附属小学清河分校 | I36: 史兴华 | J36: 潘宸颉|徐梓道 | K36: 3 | L36: =78+159 -> 237 | M36: 14 | N36: 二等奖 | O36: 16
A37: 157046 | B37: 2B8haahl-319-010-ls-001-HfW-053-1-IBd-06-KN1 | C37: FTF青少年无人机赛项 | D37: 极速任务 | E37: 普及类 | F37: 小学高龄组 | G37: 科学队 | H37: 北京外国语大学附属小学 北京市西城区京华实验学校 | I37: 王坤华 | J37: 王梓硕|董照谦 | K37: 3 | L37: =56.99+64.21 -> 121.2 | M37: 15 | N37: 二等奖 | O37: 15
A38: 156477 | B38: 2B8haahM-319-010-KX-001-T4P-053-1-nSM-06-rqx | C38: FTF青少年无人机赛项 | D38: 极速任务 | E38: 普及类 | F38: 小学高龄组 | G38: 黑鹰小队 | H38: 北京市海淀区中关村第一小学西二旗分校 | I38: 史兴华 | J38: 李子墨|陈泳鑫 | K38: 2 | L38: =99.11+107.96 -> 207.07 | M38: 16 | N38: 二等奖 | O38: 21
A39: 156485 | B39: 2B8haaho-319-010-CF-001-YWa-053-1-vAe-06-5Bq | C39: FTF青少年无人机赛项 | D39: 极速任务 | E39: 普及类 | F39: 小学高龄组 | G39: 新星之翼 | H39: 清华大学附属小学清河分校、清华大学附属小学 | I39: 史兴华 | J39: 邱子灏|贺仰桐 | K39: 2 | L39: =108.91+180 -> 288.91 | M39: 17 | N39: 三等奖 | O39: 15
A40: 147623 | B40: 2B8haa7P-319-010-Me-001-FOC-053-1-k3G-06-w3e | C40: FTF青少年无人机赛项 | D40: 极速任务 | E40: 普及类 | F40: 小学高龄组 | G40: 北京中学2队 | H40: 北京中学 | I40: 李龙 | J40: 曹博莀|王邦媛 | K40: 1 | L40: 298.24 | M40: 18 | N40: 三等奖 | O40: 12
A41: 147484 | B41: 2B8haa7x-319-010-W0-001-d3s-053-1-A7j-06-ijW | C41: FTF青少年无人机赛项 | D41: 极速任务 | E41: 普及类 | F41: 小学高龄组 | G41: 北京中学9队 | H41: 北京中学 | I41: 李龙 | J41: 陈祎辰|杨力赫 | K41: 1 | L41: =149.43+180 -> 329.43 | M41: 19 | N41: 三等奖 | O41: 7
A42: 140431 | B42: 2B8haahg-319-010-5E-001-pcO-053-1-THV-06-W2H | C42: FTF青少年无人机赛项 | D42: 极速任务 | E42: 普及类 | F42: 小学高龄组 | G42: FTF-枣园3队 | H42: 唐门（北京）教育科技 | I42: 武晨曦 | J42: 李映佑|张子初 | K42: 1 | L42: =25.74+25.6 -> 51.34 | M42: 20 | N42: 三等奖 | O42: 15
A43: 147663 | B43: 2B8haa7Z-319-010-yN-001-m7d-053-1-e9f-06-JfP | C43: FTF青少年无人机赛项 | D43: 极速任务 | E43: 普及类 | F43: 小学高龄组 | G43: 北京中学3队 | H43: 北京中学 | I43: 刘籍文 | J43: 李美莹|李若郡 | K43: 1 | L43: 257.8 | M43: 21 | N43: 三等奖 | O43: 6
A44: 147570 | B44: 2B8haahF-319-010-hf-001-DwE-053-1-sIS-06-lwN | C44: FTF青少年无人机赛项 | D44: 极速任务 | E44: 普及类 | F44: 小学高龄组 | G44: 北京中学1队 | H44: 北京中学 | I44: 刘籍文 | J44: 曹诗涵|胡子馨 | K44: 1 | L44: =128+138 -> 266 | M44: 22 | N44: 三等奖 | O44: 6
A45: 156480 | B45: 2B8haahi-319-010-gQ-001-0pN-053-1-up8-06-6dS | C45: FTF青少年无人机赛项 | D45: 极速任务 | E45: 普及类 | F45: 小学高龄组 | G45: 北斗蜂群 | H45: 北京育翔小学回龙观学校、北京市西城区鸦儿胡同小学 | I45: 史兴华 | J45: 金佳淳|李伊诺 | K45: 1 | L45: =117.04+180 -> 297.04 | M45: 23 | N45: 三等奖 | O45: 24
A46: 156651 | B46: 2B8haahb-319-010-9b-001-OjH-053-1-cQT-06-ExU | C46: FTF青少年无人机赛项 | D46: 极速任务 | E46: 普及类 | F46: 小学高龄组 | G46: 协同飞行 | H46: 北京市海淀区第二实验小学、首都师范大学附属育新学校 | I46: 史兴华 | J46: 张钧睿|刘美杨 | K46: 0 | L46: 360 | M46: 24 | N46: 三等奖 | O46: 0
A47: 147799 | B47: 2B8haa7b-319-010-oR-001-NlQ-053-1-FTP-06-SN0 | C47: FTF青少年无人机赛项 | D47: 极速任务 | E47: 普及类 | F47: 小学高龄组 | G47: 北京中学6队 | H47: 北京中学 | I47: 李龙 | J47: 张景琦|冯祺 | K47: 0 | L47: 360 | M47: 25 | N47: 三等奖 | O47: 2
A48: 155364 | B48: 2B8haah7-319-010-B3-001-34g-053-1-jQS-06-Jt8 | C48: FTF青少年无人机赛项 | D48: 极速任务 | E48: 普及类 | F48: 小学高龄组 | G48: 极速任务 | H48: 北京市海淀区西苑小学、清华大学附属小学清河分校 | I48: 史兴华 | J48: 翟屹杉|张子琛 | K48: 0 | L48: =180+145.67 -> 325.67 | M48: 26 | N48: 三等奖 | O48: 3
A49: 147883 | B49: 2B8haa7J-319-010-Ss-001-sJO-053-1-OeA-06-9nZ | C49: FTF青少年无人机赛项 | D49: 极速任务 | E49: 普及类 | F49: 小学高龄组 | G49: 北京中学10队 | H49: 北京中学 | I49: 李龙 | J49: 徐梓皓|杨沐霖 | K49: 0 | L49: 358.32 | M49: 27 | N49: 三等奖 | O49: 2
A50: 147855 | B50: 2B8haa7c-319-010-i3-001-e2p-053-1-4R8-06-WE7 | C50: FTF青少年无人机赛项 | D50: 极速任务 | E50: 普及类 | F50: 小学高龄组 | G50: 北京中学8队 | H50: 北京中学 | I50: 李龙 | J50: 杨茵怡|安介修 | K50: 0 | L50: 360 | M50: 28 | N50: 三等奖 | O50: 11
A51: 156464 | B51: 2B8haah2-319-010-4j-001-60P-053-1-Nn1-06-ber | C51: FTF青少年无人机赛项 | D51: 极速任务 | E51: 普及类 | F51: 小学高龄组 | G51: 键盘飞行 | H51: 清华大学附属小学清河分校 | I51: 史兴华 | J51: 程思齐|柳润泽 | K51: 0 | L51: =101+180 -> 281 | M51: 29 | N51: 三等奖 | O51: 21
A52: 147822 | B52: 2B8haa7t-319-010-Mt-001-ZO0-053-1-Svm-06-mgo | C52: FTF青少年无人机赛项 | D52: 极速任务 | E52: 普及类 | F52: 小学高龄组 | G52: 北京中学7队 | H52: 北京中学 | I52: 李龙 | J52: 闫瑞意|杜翼 | K52: 0 | L52: 360 | M52: 30 | N52: 三等奖 | O52: -11
A53: 147764 | B53: 2B8haa7U-319-010-B2-001-BhU-053-1-OKh-06-KWY | C53: FTF青少年无人机赛项 | D53: 极速任务 | E53: 普及类 | F53: 小学高龄组 | G53: 北京中学5队 | H53: 北京中学 | I53: 李龙 | J53: 谭亦轩|张敬玙 | K53: 0 | L53: =180+171.65 -> 351.65 | M53: 31 | N53: 三等奖 | O53: -8
A54: 147713 | B54: 2B8haa72-319-010-pI-001-hcv-053-1-Mb4-06-O8i | C54: FTF青少年无人机赛项 | D54: 极速任务 | E54: 普及类 | F54: 小学高龄组 | G54: 北京中学4队 | H54: 北京中学 | I54: 李龙 | J54: 束元泓|李盈翰 | K54: 0 | L54: 360 | M54: 32 | N54: 三等奖 | O54: -1
A56: 报名编号 | B56: 激活码 | C56: 赛道 | D56: 赛项 | E56: 所属类别 | F56: 组别 | G56: 队伍名称 | H56: 参赛单位 | I56: 教练信息 | J56: 选手信息 | K56: 比赛分数 | L56: 比赛用时 | M56: 成绩排名 | N56: 奖项
A57: 142717 | B57: 2B8haawz-319-010-OA-001-84c-054-1-890-02-Iqq | C57: FTF青少年无人机赛项 | D57: 球形无人机对抗 | E57: 普及类 | F57: 初中组 | G57: 悠攻者联盟 | H57: 北京市第十八中学 北京市文汇中学 北京市第二十七中学 | I57: 梁禹和 | J57: 赵文博|王杰霄|杨子铎 | K57: 76 | L57: / | M57: 1 | N57: 一等奖(冠军)
A58: 142726 | B58: 2B8haawZ-319-010-iW-001-PAh-054-1-lK9-02-kH6 | C58: FTF青少年无人机赛项 | D58: 球形无人机对抗 | E58: 普及类 | F58: 初中组 | G58: 悠斗前锋队 | H58: 大庆市东城领秀学校 北京市第二十中学 北京中学三分校 | I58: 梁禹和 | J58: 张恩齐|张瀚唐|钟沐君 | K58: 67 | L58: / | M58: 2 | N58: 一等奖(亚军)
A59: 144405 | B59: 2B8haawy-319-010-Ov-001-x4O-054-1-JRi-02-6hc | C59: FTF青少年无人机赛项 | D59: 球形无人机对抗 | E59: 普及类 | F59: 初中组 | G59: 凌空悠击队 | H59: 北师大亚太实验学校 中国人大附中朝阳学校 北京市东城区二十二中 | I59: 梁禹和 | J59: 陈茹鸿|邢瀚禹|高紫瑞 | K59: 65 | L59: / | M59: 3 | N59: 一等奖(季军)
A60: 150291 | B60: 2B8haawx-319-010-aS-001-KBb-054-1-nTc-02-Gnd | C60: FTF青少年无人机赛项 | D60: 球形无人机对抗 | E60: 普及类 | F60: 初中组 | G60: 逐梦无人机 | H60: 广州番禺市桥桥东小学 番禺沙湾荟贤小学 广东番禺中学附属学校 | I60: 马昕明 | J60: 何俊龙|刘倬玮|程蒙博 | K60: 64 | L60: / | M60: 4 | N60: 二等奖
A61: 152691 | B61: 2B8haawn-319-010-wJ-001-cC7-054-1-TEd-02-CPN | C61: FTF青少年无人机赛项 | D61: 球形无人机对抗 | E61: 普及类 | F61: 初中组 | G61: 育英飞行队 | H61: 北京市育英学校密云分校 | I61: 王晨|孙海滨 | J61: 刘潇旭|刘潇阳|王语菡 | K61: 14 | L61: / | M61: 5 | N61: 二等奖
A62: 149983 | B62: 2B8haaw9-319-010-1m-001-nRF-054-1-e16-02-B9N | C62: FTF青少年无人机赛项 | D62: 球形无人机对抗 | E62: 普及类 | F62: 初中组 | G62: 风鸢浩瀚队 | H62: 北京师范大学实验中学丰台学校 北京育才学校 中关村三小科技园分校 | I62: 袁宏展 | J62: 李瀚青|王跃然|王延瑞 | K62: 13 | L62: / | M62: 6 | N62: 三等奖
A63: 146834 | B63: 2B8haawG-319-010-ZP-001-Owf-054-1-sps-02-Mgw | C63: FTF青少年无人机赛项 | D63: 球形无人机对抗 | E63: 普及类 | F63: 初中组 | G63: FS-6队 | H63: 北京教育科学研究院丰台学校 北京市第八十中学人大附中亦庄新城学校 | I63: 李春雷|李孟尧 | J63: 马海腾|段瑞轩|程弈然 | K63: 12 | L63: / | M63: 7 | N63: 三等奖
A64: 156084 | B64: 2B8haaw3-319-010-7a-001-zE9-054-1-Owh-02-bmL | C64: FTF青少年无人机赛项 | D64: 球形无人机对抗 | E64: 普及类 | F64: 初中组 | G64: 北京悠游瓦力一队 | H64: 北京市牛栏山一中实验学校 北京市新英才学校 北京市怀柔区第三中学 | I64: 高中天|陈帅 | J64: 于翔丞|王晗菲|李慕涵 | K64: 4 | L64: / | M64: 8 | N64: 三等奖
A65: 147874 | B65: 2B8haawa-319-010-1U-001-nEq-054-1-Y6W-02-DF9 | C65: FTF青少年无人机赛项 | D65: 球形无人机对抗 | E65: 普及类 | F65: 初中组 | G65: 星火队 | H65: 青西第六初级中学，青西实验初级中学，青西第六初级中学 | I65: 尹龙 | J65: 王昊宇|庞博桐|司振铎 | K65: 3 | L65: / | M65: 9 | N65: 三等奖
A66: 148859 | B66: 2B8haawc-319-010-Cv-001-rQn-054-1-rul-02-g3O | C66: FTF青少年无人机赛项 | D66: 球形无人机对抗 | E66: 普及类 | F66: 初中组 | G66: 芜湖起飞队 | H66: 芳草地国际学校日坛校区、西城区实验小学、朝阳区星河实验学校 | I66: 刘鑫鹏 | J66: 张铭博|周皓清|张晏嘉 | K66: 3 | L66: / | M66: 10 | N66: 三等奖
A68: 142647 | B68: 2B8haaz0-319-010-0u-001-zVQ-054-1-aZS-06-P7s | C68: FTF青少年无人机赛项 | D68: 球形无人机对抗 | E68: 普及类 | F68: 小学高龄组 | G68: 老油条 | H68: 北京育英学校 北京市崇文小学 北京乐成学校 | I68: 曲英赫 | J68: 张哲宁|李可泉|师大胜 | K68: 97 | L68: / | M68: 1 | N68: 一等奖(冠军)
A69: 142661 | B69: 2B8haazY-319-010-22-001-QV7-054-1-gpq-06-SvB | C69: FTF青少年无人机赛项 | D69: 球形无人机对抗 | E69: 普及类 | F69: 小学高龄组 | G69: 胡萝卜 | H69: 北京市海淀区实验小学 北京理工大学附属中学 北京市崇文小学 | I69: 曲英赫 | J69: 杜柠汐|蔡均正|陈奕曈 | K69: 90 | L69: / | M69: 2 | N69: 一等奖(亚军)
A70: 141156 | B70: 2B8haazL-319-010-3U-001-07Q-054-1-QXH-06-8BP | C70: FTF青少年无人机赛项 | D70: 球形无人机对抗 | E70: 普及类 | F70: 小学高龄组 | G70: 烁金飞刃队 | H70: 北京首都师范大学附属小学通汇校区 海淀区实验小学 | I70: 金园园 | J70: 刘俊甫|邢子伊|杨澈 | K70: 89 | L70: / | M70: 3 | N70: 一等奖(季军)
A71: 140401 | B71: 2B8haazz-319-010-O9-001-7OZ-054-1-jpj-06-w9i | C71: FTF青少年无人机赛项 | D71: 球形无人机对抗 | E71: 普及类 | F71: 小学高龄组 | G71: 瀚海星璇队 | H71: 北京市朝阳区力迈学校 海淀区五一小学 六一小学 | I71: 金园园 | J71: 李梓瑞|王梓达|董景桐 | K71: 79 | L71: / | M71: 4 | N71: 一等奖
A72: 142752 | B72: 2B8haa70-319-010-v7-001-xJF-054-1-nRr-06-4MO | C72: FTF青少年无人机赛项 | D72: 球形无人机对抗 | E72: 普及类 | F72: 小学高龄组 | G72: 幻影悠卫队 | H72: 中国科学院附属实验学校 北京师范大学京师附小 北京市崇文小学 | I72: 刘璇 | J72: 许泽宸|鲁偲枞|韩淇羽 | K72: 57 | L72: / | M72: 5 | N72: 一等奖
A73: 142734 | B73: 2B8haa7j-319-010-Vx-001-iXT-054-1-tOS-06-TBO | C73: FTF青少年无人机赛项 | D73: 球形无人机对抗 | E73: 普及类 | F73: 小学高龄组 | G73: 雷霆御风者 | H73: 北京市海淀区五一未来实验小学 北京市府学胡同小学 | I73: 梁禹和 | J73: 曲文至|刘蕴文|邱浩轩 | K73: 55 | L73: / | M73: 6 | N73: 一等奖
A74: 154229 | B74: 2B8haaZN-319-010-yu-001-kMn-054-1-2MF-06-jwI | C74: FTF青少年无人机赛项 | D74: 球形无人机对抗 | E74: 普及类 | F74: 小学高龄组 | G74: 首师附学校7队 | H74: 首都师范大学附属良乡大学城学校 北京市房山区良乡第三小学 | I74: 苏喜朝 | J74: 冷载菁|扈书尧|尹暄逸 | K74: 53 | L74: / | M74: 7 | N74: 一等奖
A75: 147993 | B75: 2B8haaz3-319-010-Uh-001-uJy-054-1-V0m-06-L0r | C75: FTF青少年无人机赛项 | D75: 球形无人机对抗 | E75: 普及类 | F75: 小学高龄组 | G75: 三龙队 | H75: 青西峨眉山路小学，青西积米崖小学，青西世博城学校 | I75: 尹龙 | J75: 任嘉祺|于冬硕|孙加皓 | K75: 46 | L75: / | M75: 8 | N75: 二等奖
A76: 140242 | B76: 2B8haa7m-319-010-5Q-001-wCO-054-1-Ajm-06-RHc | C76: FTF青少年无人机赛项 | D76: 球形无人机对抗 | E76: 普及类 | F76: 小学高龄组 | G76: 闪电悠球队 | H76: 北京市 丰台区怡海小学 通州区民族小学 海淀区五一未来实验小学 | I76: 梁禹和 | J76: 赵文凯|万依诺|刘蕴水 | K76: 42 | L76: / | M76: 9 | N76: 二等奖
A77: 153367 | B77: 2B8haaZl-319-010-Jt-001-t5l-054-1-nvX-06-LqA | C77: FTF青少年无人机赛项 | D77: 球形无人机对抗 | E77: 普及类 | F77: 小学高龄组 | G77: 首师附学校6队 | H77: 首都师范大学附属良乡大学城学校 北京市房山区良乡镇良乡中心小学 | I77: 冯超 | J77: 赵明杰|刘佳祎|何艺多 | K77: 41 | L77: / | M77: 10 | N77: 二等奖
A78: 149962 | B78: 2B8haaZf-319-010-os-001-7VG-054-1-SvO-06-zRW | C78: FTF青少年无人机赛项 | D78: 球形无人机对抗 | E78: 普及类 | F78: 小学高龄组 | G78: FS-2队 | H78: 北京海淀实验学校大兴分校 北京十五中附小 北京房山长阳第一小学 | I78: 张肖依 | J78: 安奕航|李辰昊|李雨航 | K78: 41 | L78: / | M78: 11 | N78: 二等奖
A79: 153336 | B79: 2B8haaZT-319-010-ys-001-mXm-054-1-ysw-06-dCr | C79: FTF青少年无人机赛项 | D79: 球形无人机对抗 | E79: 普及类 | F79: 小学高龄组 | G79: 首师附学校5队 | H79: 首都师范大学附属良乡大学城学校 | I79: 苏喜朝 | J79: 孟垚金|何樾阳|楚欣瑶 | K79: 41 | L79: / | M79: 12 | N79: 二等奖
A80: 140865 | B80: 2B8haazw-319-010-Gz-001-cNK-054-1-qio-06-4tD | C80: FTF青少年无人机赛项 | D80: 球形无人机对抗 | E80: 普及类 | F80: 小学高龄组 | G80: 沧海凌云队 | H80: 北京市海淀区培英小学 北京第二实验小学 理工大学附属中学小学部 | I80: 金园园 | J80: 李明昊|梁亦宸|杨泽元 | K80: 19 | L80: / | M80: 13 | N80: 二等奖
A81: 153316 | B81: 2B8haaZC-319-010-EP-001-CCV-054-1-xsj-06-6vY | C81: FTF青少年无人机赛项 | D81: 球形无人机对抗 | E81: 普及类 | F81: 小学高龄组 | G81: 首师附学校4队 | H81: 首都师范大学附属良乡大学城学校 | I81: 苏喜朝 | J81: 王甜馨|张天允|晋雨泽 | K81: 18 | L81: / | M81: 14 | N81: 二等奖
A82: 153014 | B82: 2B8haaZ1-319-010-hW-001-53n-054-1-I0F-06-zOy | C82: FTF青少年无人机赛项 | D82: 球形无人机对抗 | E82: 普及类 | F82: 小学高龄组 | G82: 首师附学校8队 | H82: 首都师范大学附属良乡大学城学校 | I82: 苏喜朝 | J82: 李嘉淳|王辰昱|窦德馨 | K82: 18 | L82: / | M82: 15 | N82: 二等奖
A83: 153286 | B83: 2B8haaZs-319-010-5l-001-PPZ-054-1-94G-06-euI | C83: FTF青少年无人机赛项 | D83: 球形无人机对抗 | E83: 普及类 | F83: 小学高龄组 | G83: 首师附学校3队 | H83: 首都师范大学附属良乡大学城学校 | I83: 苏喜朝 | J83: 郭雨城|侯易宏|赵梵墨 | K83: 18 | L83: / | M83: 16 | N83: 二等奖
A84: 140397 | B84: 2B8haa7Q-319-010-G2-001-69J-054-1-mgs-06-2LZ | C84: FTF青少年无人机赛项 | D84: 球形无人机对抗 | E84: 普及类 | F84: 小学高龄组 | G84: 疾风悠战队 | H84: 广州市越秀区东风东路小学番禺区金海岸实验学校明德实验学校碧海校区 | I84: 江立杨 | J84: 黄子宸|秦沐凡|夏婉清 | K84: 16 | L84: / | M84: 17 | N84: 二等奖
A85: 142664 | B85: 2B8haazQ-319-010-og-001-JKI-054-1-bLp-06-omo | C85: FTF青少年无人机赛项 | D85: 球形无人机对抗 | E85: 普及类 | F85: 小学高龄组 | G85: 小笼包 | H85: 海淀区实验小学 中国人民大学附属小学 海淀区首都师范大学附属小学 | I85: 曲英赫 | J85: 杨行之|李乐行|金泓霖 | K85: 17 | L85: / | M85: 18 | N85: 二等奖
A86: 153062 | B86: 2B8haaZe-319-010-If-001-W6L-054-1-xbu-06-jzu | C86: FTF青少年无人机赛项 | D86: 球形无人机对抗 | E86: 普及类 | F86: 小学高龄组 | G86: 首师附学校2队 | H86: 首都师范大学附属中学实验学校 首都师范大学附属良乡大学城学校 | I86: 李佳姿 | J86: 许苧洢|刘俊宽|彭修 | K86: 16 | L86: / | M86: 19 | N86: 二等奖
A87: 157811 | B87: 2B8haa7d-319-010-aT-001-bS9-054-1-q2Q-06-C7L | C87: FTF青少年无人机赛项 | D87: 球形无人机对抗 | E87: 普及类 | F87: 小学高龄组 | G87: hello编程2队 | H87: Hello编程机器人 | I87: 郭启豪 | J87: 葛一来|张宸羲|杜彦儒 | K87: 16 | L87: / | M87: 20 | N87: 二等奖
A88: 147357 | B88: 2B8haaZq-319-010-wm-001-cF4-054-1-ok5-06-nYi | C88: FTF青少年无人机赛项 | D88: 球形无人机对抗 | E88: 普及类 | F88: 小学高龄组 | G88: FS-1队 | H88: 北京市海淀区第二实验小学人大附中亦庄新城学校北京市西城区育民小学 | I88: 杨毅 | J88: 杨海霖|温崇皓|温言迟 | K88: 15 | L88: / | M88: 21 | N88: 二等奖
A89: 155908 | B89: 2B8haazP-319-010-vk-001-apt-054-1-MUp-06-pfC | C89: FTF青少年无人机赛项 | D89: 球形无人机对抗 | E89: 普及类 | F89: 小学高龄组 | G89: 怀柔三小二队 | H89: 北京市怀柔区第三小学 | I89: 任艳辉 | J89: 秦梓蒽|苏泊玮|彭一珈 | K89: 15 | L89: / | M89: 22 | N89: 二等奖
A90: 147899 | B90: 2B8haazf-319-010-sj-001-fo9-054-1-7n7-06-AXG | C90: FTF青少年无人机赛项 | D90: 球形无人机对抗 | E90: 普及类 | F90: 小学高龄组 | G90: 蜂鸟突击队 | H90: 北京人民大学附属中学实验小学 清华大学附属小学 人民大学附属小学 | I90: 刘丽艳 | J90: 马允谦|黄钟毓|宗栋梁 | K90: 15 | L90: / | M90: 23 | N90: 二等奖
A91: 140597 | B91: 2B8haaZn-319-010-nC-001-0LL-054-1-h17-06-JMf | C91: FTF青少年无人机赛项 | D91: 球形无人机对抗 | E91: 普及类 | F91: 小学高龄组 | G91: 风之翼FS-3 | H91: 首都师范大学附属育新学校，海淀区中关村一小天秀校区，巩华中心小学 | I91: 徐文慧 | J91: 刘思源|胡家铭|徐广庭 | K91: 14 | L91: / | M91: 24 | N91: 二等奖
A92: 143608 | B92: 2B8haa7u-319-010-Fa-001-03Q-054-1-BLL-06-0Pc | C92: FTF青少年无人机赛项 | D92: 球形无人机对抗 | E92: 普及类 | F92: 小学高龄组 | G92: ‌赤焰飞梭 | H92: 北京码卡信息技术咨询 | I92: 李天宇 | J92: 岑琰骅|郭自砺|徐焦壘 | K92: 14 | L92: / | M92: 25 | N92: 三等奖
A93: 157805 | B93: 2B8haaZQ-319-010-rq-001-As5-054-1-f0R-06-P3P | C93: FTF青少年无人机赛项 | D93: 球形无人机对抗 | E93: 普及类 | F93: 小学高龄组 | G93: hello编程1队 | H93: Hello编程机器人 | I93: 郭启豪 | J93: 杜宇澄|才和太|曹煜晨 | K93: 14 | L93: / | M93: 26 | N93: 三等奖
A94: 148681 | B94: 2B8haazC-319-010-Zm-001-s6H-054-1-ONX-06-SSc | C94: FTF青少年无人机赛项 | D94: 球形无人机对抗 | E94: 普及类 | F94: 小学高龄组 | G94: book41队 | H94: 人朝分东坝小学、北京市朝阳区芳草地国际学校日坛校区、 | I94: 舒程 | J94: 赵歆然|张宇彤|宁顺铖 | K94: 14 | L94: / | M94: 27 | N94: 三等奖
A95: 144341 | B95: 2B8haa79-319-010-sr-001-vX5-054-1-rmk-06-KwH | C95: FTF青少年无人机赛项 | D95: 球形无人机对抗 | E95: 普及类 | F95: 小学高龄组 | G95: 悠辰巡天队 | H95: 北京市五一未来实验小学 北京第一实验学校 北京市西城区育民小学 | I95: 刘璇 | J95: 沈珈伊|石纯熙|阴子修 | K95: 13 | L95: / | M95: 28 | N95: 三等奖
A96: 147731 | B96: 2B8haazV-319-010-1R-001-QIh-054-1-kTe-06-c8u | C96: FTF青少年无人机赛项 | D96: 球形无人机对抗 | E96: 普及类 | F96: 小学高龄组 | G96: 智渊星航队 | H96: 人民大学附属中学实验小学 首师大实验小学 首师大附属小学通汇校区 | I96: 金园园 | J96: 葛皓研|张禹恒|辛弈成 | K96: 12 | L96: / | M96: 29 | N96: 三等奖
A97: 153191 | B97: 2B8haaZD-319-010-1p-001-hRF-054-1-OlR-06-cqZ | C97: FTF青少年无人机赛项 | D97: 球形无人机对抗 | E97: 普及类 | F97: 小学高龄组 | G97: 首师附学校1队 | H97: 首都师范大学附属良乡大学城学校 | I97: 苏喜朝 | J97: 王韵雅|毕言成|孟梓雯 | K97: 12 | L97: / | M97: 30 | N97: 三等奖
A98: 155808 | B98: 2B8haa7D-319-010-lS-001-g46-054-1-obs-06-dZt | C98: FTF青少年无人机赛项 | D98: 球形无人机对抗 | E98: 普及类 | F98: 小学高龄组 | G98: 北京悠游瓦力二队 | H98: 北京市怀柔区第五小学 北京市怀柔区第二小学 北京市顺义区港馨小学 | I98: 高中天|陈帅 | J98: 耿煜皓|杜卿睿|李诗哲 | K98: 12 | L98: / | M98: 31 | N98: 三等奖
A99: 148025 | B99: 2B8haazJ-319-010-Ka-001-4Iz-054-1-F8s-06-399 | C99: FTF青少年无人机赛项 | D99: 球形无人机对抗 | E99: 普及类 | F99: 小学高龄组 | G99: 超维立方队 | H99: 北京海淀区前进小学 中国音乐学院附属北京实验学校 人大附实验小学 | I99: 刘丽艳 | J99: 杨昀知|颜克懿|姚骏德 | K99: 12 | L99: / | M99: 32 | N99: 三等奖
A100: 147857 | B100: 2B8haaz9-319-010-Da-001-Beh-054-1-YdE-06-c2w | C100: FTF青少年无人机赛项 | D100: 球形无人机对抗 | E100: 普及类 | F100: 小学高龄组 | G100: 先见未来队 | H100: 中国人民大学附属小学 北京海淀凯文学校 清华大学附属小学 | I100: 荀正飞 | J100: 王天瑞|张珈齐|雷宸 | K100: 11 | L100: / | M100: 33 | N100: 三等奖
A101: 155819 | B101: 2B8haa7s-319-010-vM-001-v6S-054-1-Dk2-06-VZm | C101: FTF青少年无人机赛项 | D101: 球形无人机对抗 | E101: 普及类 | F101: 小学高龄组 | G101: 北京悠游瓦力三队 | H101: 北京市怀柔区第三小学 北京市怀柔区第六小学 | I101: 高中天|陈帅 | J101: 王博超|田岳鑫|朱家仪 | K101: 11 | L101: / | M101: 34 | N101: 三等奖
A102: 147680 | B102: 2B8haaza-319-010-2O-001-KGM-054-1-vxk-06-ncH | C102: FTF青少年无人机赛项 | D102: 球形无人机对抗 | E102: 普及类 | F102: 小学高龄组 | G102: 芯动未来队 | H102: 北京中关村三小 北京中关村三小 北京海淀凯文 | I102: 荀正飞 | J102: 田弘毅|肖义霖|王天佑 | K102: 11 | L102: / | M102: 35 | N102: 三等奖
A103: 155774 | B103: 2B8haa7e-319-010-Gj-001-nn5-054-1-bV3-06-Neg | C103: FTF青少年无人机赛项 | D103: 球形无人机对抗 | E103: 普及类 | F103: 小学高龄组 | G103: 怀柔三小一队 | H103: 北京市怀柔区第三小学 | I103: 任艳辉 | J103: 周牧青|刘宣玙|贾周润 | K103: 11 | L103: / | M103: 36 | N103: 三等奖
A104: 158251 | B104: 2B8haaZS-319-010-YX-001-CjK-054-1-Z7Q-06-gyE | C104: FTF青少年无人机赛项 | D104: 球形无人机对抗 | E104: 普及类 | F104: 小学高龄组 | G104: 首师附学校9队 | H104: 首都师范大学附属良乡大学城学校 | I104: 苏喜朝 | J104: 景翊宸|杨宇辰|杨昀熹 | K104: 11 | L104: / | M104: 37 | N104: 三等奖
A105: 149963 | B105: 2B8haazk-319-010-uh-001-Pgt-054-1-Hrj-06-8U9 | C105: FTF青少年无人机赛项 | D105: 球形无人机对抗 | E105: 普及类 | F105: 小学高龄组 | G105: 风驭星驰队 | H105: 北京市第十八中学蒲芳学校 北京育才学校 北京市东城区定安里小学 | I105: 袁宏展 | J105: 张鹤轩|王跃霖|陈禹昂 | K105: 10 | L105: / | M105: 38 | N105: 三等奖
A106: 148831 | B106: 2B8haazN-319-010-6h-001-OOh-054-1-sb7-06-oOx | C106: FTF青少年无人机赛项 | D106: 球形无人机对抗 | E106: 普及类 | F106: 小学高龄组 | G106: 飞跃竞速队 | H106: 羊坊店中学小学、人朝分东坝学校、北京小学天宁寺分校 | I106: 舒程 | J106: 昝柯阳|修远兮|赵梧鸣 | K106: 10 | L106: / | M106: 39 | N106: 三等奖
A107: 155841 | B107: 2B8haazv-319-010-Qs-001-sw9-054-1-xdc-06-ko5 | C107: FTF青少年无人机赛项 | D107: 球形无人机对抗 | E107: 普及类 | F107: 小学高龄组 | G107: 北京悠游瓦力四队 | H107: 北京市怀柔区第三小学 北京第二实验小学怀柔分校 | I107: 高中天|陈帅 | J107: 龚皓扬|徐子毅|郭子淇 | K107: 10 | L107: / | M107: 40 | N107: 三等奖
A108: 147471 | B108: 2B8haazi-319-010-wp-001-cuC-054-1-M2Q-06-XjB | C108: FTF青少年无人机赛项 | D108: 球形无人机对抗 | E108: 普及类 | F108: 小学高龄组 | G108: 云中精灵队 | H108: 北京农科附小 北京中关村一小 北京医科大学附属小学 | I108: 荀正飞 | J108: 周宇辰|白炎旭|田东楷 | K108: 10 | L108: / | M108: 41 | N108: 三等奖
A109: 148166 | B109: 2B8haazr-319-010-FA-001-JVO-054-1-ETL-06-4t8 | C109: FTF青少年无人机赛项 | D109: 球形无人机对抗 | E109: 普及类 | F109: 小学高龄组 | G109: 少先队 | H109: 青西双语小学、青西积米崖小学、青西万达赫德双语学校 | I109: 尹龙 | J109: 韩润轩|王成宇|张瀚达 | K109: 9 | L109: / | M109: 42 | N109: 三等奖
A110: 147470 | B110: 2B8haazG-319-010-ir-001-3FO-054-1-nYr-06-35i | C110: FTF青少年无人机赛项 | D110: 球形无人机对抗 | E110: 普及类 | F110: 小学高龄组 | G110: 核芯战队 | H110: 北京市第十三中学附属小学 北京理工大学附属小学 人民大学附属小学 | I110: 刘丽艳 | J110: 张梓熙|付映缇|王馨缘 | K110: 9 | L110: / | M110: 43 | N110: 三等奖
A111: 142154 | B111: 2B8haaz4-319-010-Ps-001-VR8-054-1-8gC-06-ms5 | C111: FTF青少年无人机赛项 | D111: 球形无人机对抗 | E111: 普及类 | F111: 小学高龄组 | G111: 球形闪电队 | H111: 北京西城区师范学校附属小学 北京大学附属小学肖家河分校 六一小学 | I111: 刘丽艳 | J111: 于睦洋|孙柏霖|董景楠 | K111: 8 | L111: / | M111: 44 | N111: 三等奖
A112: 148394 | B112: 2B8haazD-319-010-Mm-001-LTo-054-1-Sf8-06-Acn | C112: FTF青少年无人机赛项 | D112: 球形无人机对抗 | E112: 普及类 | F112: 小学高龄组 | G112: 云梭逐光队 | H112: 第一零九中学小学实验部 垂杨柳中心小学 清华大学附属中学广华学校 | I112: 袁宏展 | J112: 薛涵语|刘思萌|仲子岳 | K112: 8 | L112: / | M112: 45 | N112: 三等奖
A113: 148765 | B113: 2B8haazR-319-010-cT-001-EJo-054-1-oyb-06-HTN | C113: FTF青少年无人机赛项 | D113: 球形无人机对抗 | E113: 普及类 | F113: 小学高龄组 | G113: 蛋仔派队 | H113: 北京陈经纶中学保利小学北校区、北京通州区第一实验小学杨庄校区 | I113: 常鹏宇 | J113: 崔云起|陈一诺|张译文 | K113: 7 | L113: / | M113: 46 | N113: 三等奖
A114: 147917 | B114: 2B8haazp-319-010-2M-001-usA-054-1-p7V-06-Y1O | C114: FTF青少年无人机赛项 | D114: 球形无人机对抗 | E114: 普及类 | F114: 小学高龄组 | G114: 望京一队 | H114: 北京明远教育书院实验小学首师大附属实验学校北京市朝阳区实验小学 | I114: 王喜贺 | J114: 唐瑞鸿|时梓彧|杨杰 | K114: 7 | L114: / | M114: 47 | N114: 三等奖
A115: 147549 | B115: 2B8haazX-319-010-hM-001-O4G-054-1-ZrM-06-V0O | C115: FTF青少年无人机赛项 | D115: 球形无人机对抗 | E115: 普及类 | F115: 小学高龄组 | G115: 飞跃云桥队 | H115: 北京市中关村第三小学 北京理工大学附属小学 北京市海淀区西苑小学 | I115: 荀正飞 | J115: 李弘毅|曾子骁|田和鸣 | K115: 1 | L115: / | M115: 48 | N115: 三等奖
